bitfinex/quotes_SOLUSD_20250818
["timestamp","ask_amount","ask_price","bid_price","bid_amount"]
[1755488719138,3.61420635,182.6,182.54,0.2]
[1755488719312,0.68,182.59,182.54,0.2]
[1755488719514,29.01004938,182.58,182.54,0.2]
[1755488719712,0.68,182.57,182.54,0.2]
[1755488719916,6.15765118,182.56,182.54,0.2]
[1755488720238,42.38,182.55,182.54,0.2]
[1755488720419,46.66262832,182.55,182.54,0.2]
[1755488720608,43.06,182.55,182.54,0.2]
[1755488721609,43.79507889,182.55,182.54,0.2]
[1755488721805,49.27303013,182.55,182.54,0.2]
[1755488722239,45.67456932,182.55,182.54,0.2]
[1755488726335,5.47795124,182.55,182.54,0.2]
[1755488726508,47.83795124,182.55,182.54,0.2]
[1755488727113,42.36,182.55,182.54,0.2]
[1755488727419,42.36,182.55,182.54,16.5879466]
[1755488727931,13.68984361,182.62,182.54,16.5879466]
[1755488727932,14.36984361,182.62,182.54,16.5879466]
[1755488728107,47.81615136,182.61,182.56,15.6679466]
[1755488728306,47.81615136,182.61,182.54,15.8679466]
[1755488728307,0.68,182.6,182.54,15.8679466]
[1755488728507,42.34,182.59,182.54,0.2]
[1755488728707,26.0,182.56,182.54,0.2]
[1755488729004,42.34,182.55,182.54,0.2]
[1755488729220,43.02,182.55,182.54,0.2]
[1755488730051,48.49795124,182.55,182.54,0.2]
[1755488734451,48.49795124,182.55,182.54,1e-08]
[1755488734747,52.07045936,182.55,182.54,1e-08]
[1755488735167,52.07045936,182.55,182.52,0.2]
[1755488735168,26.0,182.53,182.52,1e-08]
[1755488735324,68.3,182.53,182.52,1e-08]
[1755488735521,72.5520273,182.53,182.52,1e-08]
[1755488736063,72.5520273,182.53,182.5,1e-08]
[1755488736352,5.47915182,182.51,182.5,1e-08]
[1755488736547,47.77915182,182.51,182.5,1e-08]
[1755488736856,52.03117912,182.51,182.5,1e-08]
[1755488738229,52.03117912,182.51,182.46,0.02702995]
[1755488738230,26.0,182.48,182.46,1e-08]
[1755488738424,5.48065329,182.46,182.45,1e-08]
[1755488738949,6.16065329,182.46,182.45,1e-08]
[1755488740447,42.28,182.46,182.45,1e-08]
[1755488741452,47.76065329,182.46,182.45,1e-08]
[1755488741825,5.48065329,182.46,182.45,0.72000001]
[1755488742155,47.76065329,182.46,182.45,1e-08]
[1755488742447,47.76065329,182.46,182.45,0.72000001]
[1755488743956,42.26,182.47,182.45,0.72000001]
[1755488744625,42.26,182.47,182.45,1e-08]
[1755488744926,5.47945205,182.5,182.45,0.03000001]
[1755488745147,42.26,182.49,182.46,0.72]
[1755488745753,5.4800526,182.48,182.46,0.72]
[1755488746736,13.69917012,182.5,182.45,0.03000001]
[1755488746737,0.06,182.55,182.48,15.10621557]
[1755488747049,5.53803983,182.55,182.51,15.6679466]
[1755488747251,42.24,182.54,182.52,0.71]
[1755488747753,42.24,182.54,182.53,0.71]
[1755488748792,0.06,182.55,182.53,0.71]
[1755488748933,42.24,182.54,182.52,15.6679466]
[1755488749541,0.06,182.55,182.53,16.3779466]
[1755488749743,0.06,182.55,182.53,0.71]
[1755488749939,0.06,182.55,182.54,0.71]
[1755488751542,0.06,182.55,182.51,0.71]
[1755488751860,0.06,182.55,182.52,0.71]
[1755488752044,5.53795124,182.55,182.53,0.71]
[1755488754056,0.06,182.55,182.53,0.71]
[1755488754660,0.06,182.55,182.51,0.71]
[1755488754965,0.06,182.55,182.54,0.71]
[1755488756363,3.63754413,182.55,182.54,0.71]
[1755488756655,0.06,182.55,182.54,0.71]
[1755488756861,3.63754413,182.55,182.54,0.71]
[1755488757045,0.06,182.55,182.54,0.71]
[1755488757242,3.63754413,182.55,182.52,10.41297676]
[1755488757461,45.73754413,182.54,182.49,0.71]
[1755488757649,4.23754413,182.53,182.47,15.81621557]
[1755488757961,3.57754413,182.52,182.47,0.71]
[1755488758168,42.16,182.51,182.47,0.71]
[1755488758463,3.57754413,182.5,182.47,0.71]
[1755488758958,9.05719538,182.5,182.45,0.74000001]
[1755488759261,3.57754413,182.49,182.46,0.71]
[1755488759451,3.57754413,182.49,182.47,0.71]
[1755488760242,3.57754413,182.48,182.45,0.03000001]
[1755488760440,3.57754413,182.49,182.46,16.43246915]
[1755488760666,3.57754413,182.49,182.47,0.71]
[1755488761240,3.57754413,182.48,182.47,0.71]
[1755488761447,3.57754413,182.49,182.47,0.71]
[1755488761647,3.57754413,182.48,182.47,0.71]
[1755488761851,9.05732984,182.49,182.45,0.03000001]
[1755488762060,3.57754413,182.48,182.46,0.71]
[1755488762273,47.59950188,182.5,182.46,16.43246915]
[1755488762575,3.59780342,182.49,182.46,16.46246915]
[1755488762872,47.59950188,182.5,182.46,0.03]
[1755488762873,5.48035293,182.47,182.46,0.03]
[1755488763077,51.19815635,182.47,182.46,0.03]
[1755488763240,55.85418627,182.47,182.46,0.03]
[1755488763442,51.85815635,182.47,182.46,0.03]
[1755488764062,51.19815635,182.47,182.46,0.03]
[1755488764254,45.71780342,182.47,182.46,0.03]
[1755488765168,3.59780342,182.47,182.46,0.03]
[1755488765470,45.71780342,182.47,182.46,0.03]
[1755488766074,51.19815635,182.47,182.46,0.03]
[1755488766846,45.71780342,182.47,182.46,0.03]
[1755488767284,45.69780342,182.47,182.46,0.74]
[1755488767445,45.69780342,182.47,182.46,0.03]
[1755488767983,51.17815635,182.47,182.46,0.03]
[1755488768677,3.59780342,182.47,182.46,0.03]
[1755488769091,45.67780342,182.47,182.46,0.03]
[1755488769616,51.15815635,182.47,182.46,0.03]
[1755488770294,9.73815635,182.47,182.46,0.03]
[1755488770489,47.56035293,182.47,182.46,0.03]
[1755488770671,51.15815635,182.47,182.46,0.03]
[1755488771320,45.67780342,182.47,182.46,0.03]
[1755488772899,51.15815635,182.47,182.46,0.03]
[1755488773702,51.81815635,182.47,182.46,0.03]
[1755488773876,51.81815635,182.47,182.45,0.03000001]
[1755488774078,4.25780342,182.46,182.45,0.03000001]
[1755488775314,51.77845671,182.46,182.45,0.03000001]
[1755488775480,51.77845671,182.46,182.45,1e-08]
[1755488776826,0.14216157,182.45,182.36,1.35581775]
[1755488776976,0.14216157,182.45,182.27,3.30816839]
[1755488776977,26.0,182.36,182.35,1e-08]
[1755488777177,9.08146211,182.36,182.35,1e-08]
[1755488777402,35.48115241,182.36,182.35,1e-08]
[1755488777608,77.10146211,182.36,182.35,1e-08]
[1755488777822,55.09815387,182.36,182.35,1e-08]
[1755488778116,17.6922456,182.36,182.35,1e-08]
[1755488778422,55.24031544,182.36,182.35,1e-08]
[1755488778720,13.07815387,182.36,182.35,1e-08]
[1755488778876,47.50365869,182.36,182.35,1e-08]
[1755488779081,51.24362368,182.36,182.35,1e-08]
[1755488779279,51.24362368,182.36,182.24,0.14229573]
[1755488779280,9.85770427,182.35,182.24,0.14229573]
[1755488779482,25.79767847,182.31,182.24,0.14229573]
[1755488779716,3.59780342,182.3,182.24,0.14229573]
[1755488779893,42.02,182.29,182.24,0.14229573]
[1755488780081,3.59780342,182.28,182.24,0.80229573]
[1755488780284,3.59780342,182.28,182.22,0.14229573]
[1755488780285,42.02,182.27,182.22,0.14229573]
[1755488780483,3.59780342,182.26,182.2,50.14229573]
[1755488780683,42.02,182.25,182.2,50.14229573]
[1755488780889,3.59780342,182.24,182.2,50.14229573]
[1755488781302,5.48757065,182.23,182.21,0.66]
[1755488781497,5.48757065,182.23,182.22,0.66]
[1755488781700,5.48727411,182.24,182.22,0.14229573]
[1755488781911,42.0,182.23,182.22,0.14229573]
[1755488782108,42.0,182.23,182.2,49.66]
[1755488782482,26.0,182.21,182.2,49.66]
[1755488782683,26.66,182.21,182.2,49.66]
[1755488782911,26.66,182.21,182.2,22.10979448]
[1755488783092,26.0,182.2,182.16,0.14229573]
[1755488783289,47.50877545,182.19,182.17,0.14229573]
[1755488783522,47.50877545,182.19,182.16,0.14229573]
[1755488783704,5.48877545,182.19,182.16,0.14229573]
[1755488784026,42.0,182.18,182.17,0.14229573]
[1755488784716,9.85770427,182.32,182.2,0.14229573]
[1755488784924,0.66,182.28,182.22,0.14229573]
[1755488785100,42.0,182.27,182.22,0.14229573]
[1755488785294,42.66,182.27,182.22,0.14229573]
[1755488785495,68.66,182.27,182.22,0.14229573]
[1755488785915,5.48601777,182.29,182.24,15.77651295]
[1755488786215,42.0,182.32,182.3,0.14229573]
[1755488786402,5.483358,182.37,182.34,0.14229573]
[1755488786599,42.0,182.36,182.35,0.14229573]
[1755488786805,42.0,182.36,182.32,16.43651295]
[1755488786806,42.0,182.36,182.33,0.14229573]
[1755488786987,42.0,182.36,182.34,0.14229573]
[1755488787185,47.48368048,182.36,182.34,0.14229573]
[1755488789220,42.0,182.36,182.35,0.80229573]
[1755488789432,47.48365869,182.36,182.35,0.80229573]
[1755488789722,47.48365869,182.36,182.33,0.14229573]
[1755488789905,47.48365869,182.36,182.32,0.14229573]
[1755488790091,48.14365869,182.36,182.32,0.14229573]
[1755488790288,61.85280543,182.36,182.32,0.14229573]
[1755488790608,61.19280543,182.36,182.34,0.14229573]
[1755488791500,5.48365869,182.36,182.35,0.14229573]
[1755488791703,5.48365869,182.36,182.35,0.80229573]
[1755488791921,40.18,182.43,182.35,16.57880868]
[1755488791922,5.48275673,182.39,182.35,16.57880868]
[1755488792093,5.48275673,182.39,182.38,0.14229573]
[1755488792506,5.48275673,182.39,182.37,0.14229573]
[1755488792708,11.03082339,182.39,182.37,0.14229573]
[1755488792908,0.66,182.38,182.36,0.14229573]
[1755488793103,41.96,182.37,182.32,0.14229573]
[1755488793294,26.0,182.33,182.31,0.14229573]
[1755488794196,26.0,182.33,182.29,0.14229573]
[1755488794500,7.5987154,182.32,182.3,0.14229573]
[1755488794717,7.5987154,182.32,182.29,0.14229573]
[1755488794918,42.6,182.31,182.27,0.14229573]
[1755488795238,3.54733234,182.3,182.27,0.14229573]
[1755488795526,11.14604774,182.32,182.29,0.14229573]
[1755488795704,5.48516263,182.31,182.3,0.80229573]
[1755488795903,7.5987154,182.32,182.31,0.14229573]
[1755488796218,7.5987154,182.32,182.31,0.80229573]
[1755488796419,7.5987154,182.32,182.31,0.14229573]
[1755488796625,7.5987154,182.32,182.31,16.57880868]
[1755488796920,7.5987154,182.32,182.31,0.80229573]
[1755488797230,13.08357718,182.32,182.31,0.14229573]
[1755488797432,7.5987154,182.32,182.31,16.57880868]
[1755488797659,7.5987154,182.32,182.31,37.17018688]
[1755488797816,7.5987154,182.32,182.31,31.68502425]
[1755488797817,5.3587154,182.32,182.31,31.68502425]
[1755488798011,6.0387154,182.32,182.28,0.14229573]
[1755488798215,0.68,182.31,182.26,0.03]
[1755488798437,26.0,182.28,182.26,0.03]
[1755488798741,42.6,182.27,182.26,0.03]
[1755488798949,7.94223228,182.27,182.26,0.03]
[1755488799121,29.71250009,182.27,182.26,0.03]
[1755488799318,19.19708151,182.32,182.3,0.14229573]
[1755488799319,0.68,182.32,182.3,0.14229573]
[1755488799528,6.16395941,182.35,182.33,0.14229573]
[1755488799724,48.08395941,182.35,182.3,0.14229573]
[1755488799936,4.2327021,182.34,182.32,0.14229573]
[1755488800128,61.11385795,182.35,182.32,0.14229573]
[1755488800129,47.40395941,182.35,182.32,0.14229573]
[1755488800329,5.54370834,182.36,182.35,0.14229573]
[1755488800537,5.54365869,182.36,182.35,0.14229573]
[1755488800935,74.12365869,182.36,182.33,0.14229573]
[1755488801245,73.44365869,182.36,182.34,0.14229573]
[1755488801462,0.06,182.36,182.35,0.14229573]
[1755488801820,0.06,182.36,182.35,31.02502425]
[1755488802015,0.06,182.36,182.35,31.16718582]
[1755488802352,0.06,182.36,182.35,31.71558176]
[1755488802519,5.54066963,182.46,182.36,15.24837714]
[1755488802843,0.06,182.46,182.45,0.14229573]
[1755488803237,6.22065329,182.46,182.45,0.14229573]
[1755488803443,6.22065329,182.46,182.43,0.14229573]
[1755488803621,0.68,182.45,182.44,0.14229573]
[1755488803836,19.24228652,182.46,182.43,0.14229573]
[1755488804018,4.24174635,182.45,182.42,0.14229573]
[1755488804243,4.24174635,182.45,182.41,0.14229573]
[1755488804442,42.56,182.44,182.41,0.14229573]
[1755488804615,3.56174635,182.43,182.41,0.14229573]
[1755488804823,3.56174635,182.43,182.42,0.14229573]
[1755488805051,26.0,182.45,182.42,0.14229573]
[1755488805436,5.48125411,182.44,182.42,0.14229573]
[1755488805645,9.72529782,182.44,182.42,0.14229573]
[1755488806033,6.16125411,182.44,182.43,0.14229573]
[1755488806760,19.86438938,182.44,182.39,0.14229573]
[1755488806966,46.12346594,182.43,182.4,0.14229573]
[1755488807140,3.56346594,182.42,182.4,0.14229573]
[1755488807337,4.24346594,182.42,182.38,0.14229573]
[1755488807525,5.48215558,182.41,182.4,0.14229573]
[1755488808249,6.16215558,182.41,182.36,0.14229573]
[1755488808431,0.68,182.4,182.37,0.14229573]
[1755488808635,3.56346594,182.4,182.38,0.14229573]
[1755488808854,0.68,182.39,182.38,0.14229573]
[1755488809258,0.68,182.39,182.37,0.14229573]
[1755488809559,4.93475161,182.38,182.36,0.14229573]
[1755488809892,4.93475161,182.38,182.34,0.14229573]
[1755488809893,5.61475161,182.38,182.34,0.14229573]
[1755488810096,5.61475161,182.38,182.33,0.14229573]
[1755488810383,9.17821755,182.38,182.35,0.14229573]
[1755488810575,9.17821755,182.38,182.37,0.14229573]
[1755488810893,8.49821755,182.38,182.37,0.14229573]
[1755488811182,9.17821755,182.38,182.37,0.14229573]
[1755488811398,5.61475161,182.38,182.37,0.14229573]
[1755488811607,17.27120057,182.39,182.37,0.14229573]
[1755488811788,17.95120057,182.39,182.37,0.14229573]
[1755488812103,17.27120057,182.39,182.35,0.14229573]
[1755488812301,4.24989923,182.38,182.35,0.14229573]
[1755488812628,4.93448105,182.39,182.38,0.14229573]
[1755488813707,0.68,182.39,182.35,0.14229573]
[1755488814008,0.68,182.38,182.33,0.14229573]
[1755488814184,0.68,182.37,182.35,0.14229573]
[1755488814706,0.68,182.37,182.28,5.62796725]
[1755488814707,3.57068094,182.39,182.37,0.14229573]
[1755488814907,8.5048864,182.4,182.38,0.14229573]
[1755488815093,9.1848864,182.4,182.38,0.14229573]
[1755488815406,0.68,182.39,182.38,0.14229573]
[1755488815575,4.93475161,182.38,182.35,0.14229573]
[1755488815779,0.68,182.37,182.35,0.14229573]
[1755488816004,0.68,182.37,182.36,0.03]
[1755488816518,4.93475161,182.38,182.36,0.03]
[1755488816716,4.93475161,182.38,182.37,0.14229573]
[1755488816920,5.61475161,182.38,182.37,0.14229573]
[1755488817410,4.93475161,182.38,182.37,0.14229573]
[1755488817619,3.57067588,182.4,182.37,0.14229573]
[1755488817915,4.25067588,182.4,182.37,0.14229573]
[1755488818084,0.68,182.39,182.37,0.14229573]
[1755488818287,0.68,182.38,182.37,0.14229573]
[1755488818715,3.57067588,182.4,182.37,0.14229573]
[1755488818916,6.0611943,182.46,182.41,0.14229573]
[1755488818917,4.93371218,182.42,182.41,0.14229573]
[1755488819491,0.68,182.44,182.41,0.14229573]
[1755488819717,4.93339911,182.43,182.42,0.14229573]
[1755488819893,5.61339911,182.43,182.4,0.14229573]
[1755488820100,5.61339911,182.43,182.42,0.14229573]
[1755488820311,0.06,182.46,182.43,0.14229573]
[1755488820512,0.06,182.46,182.45,0.14229573]
[1755488820818,5.67258796,182.46,182.42,0.14229573]
[1755488820998,4.99258796,182.46,182.44,0.14229573]
[1755488821196,4.99258796,182.46,182.45,0.14229573]
[1755488821502,47.5849298,182.46,182.39,0.14229573]
[1755488821819,47.5849298,182.46,182.36,15.13621557]
[1755488821820,4.26087193,182.45,182.42,0.14229573]
[1755488822001,4.26087193,182.45,182.41,0.14229573]
[1755488822203,0.68,182.44,182.41,0.14229573]
[1755488822408,0.68,182.43,182.39,0.14229573]
[1755488822610,0.68,182.43,182.41,0.14229573]
[1755488822826,3.58087193,182.45,182.41,0.14229573]
[1755488822827,0.68,182.42,182.41,0.14229573]
[1755488823000,0.68,182.44,182.41,0.14229573]
[1755488823706,4.93366955,182.42,182.41,0.14229573]
[1755488823922,8.51454148,182.42,182.41,0.14229573]
[1755488824128,5.61366955,182.42,182.41,0.14229573]
[1755488825222,5.61366955,182.42,182.37,0.14229573]
[1755488825422,0.68,182.41,182.38,0.14229573]
[1755488825639,0.68,182.4,182.36,0.03]
[1755488825945,26.0,182.38,182.36,0.03]
[1755488826138,71.36087193,182.37,182.34,0.03]
[1755488826343,26.0,182.34,182.32,0.03]
[1755488826528,45.36087193,182.33,182.25,0.14229573]
[1755488826714,3.58087193,182.32,182.24,0.14229573]
[1755488827025,67.78,182.33,182.27,0.14229573]
[1755488827026,26.0,182.3,182.27,0.14229573]
[1755488827219,4.93745885,182.28,182.27,0.14229573]
[1755488827657,4.93745885,182.28,182.25,0.14229573]
[1755488827945,4.93745885,182.28,182.27,0.14229573]
[1755488828145,26.0,182.33,182.27,15.91880868]
[1755488828332,4.45218294,182.36,182.34,0.14229573]
[1755488828532,8.22331524,182.41,182.34,0.14229573]
[1755488828533,3.58822011,182.35,182.34,0.14229573]
[1755488828739,6.87769379,182.4,182.39,0.14229573]
[1755488828938,6.87733314,182.42,182.41,0.14229573]
[1755488829124,7.55733314,182.42,182.4,0.14229573]
[1755488829326,4.26822011,182.41,182.4,0.14229573]
[1755488829643,4.26822011,182.41,182.39,0.14229573]
[1755488829825,3.58822011,182.4,182.39,0.14229573]
[1755488830024,3.58822011,182.4,182.37,0.14229573]
[1755488830233,3.58822011,182.39,182.35,0.14229573]
[1755488830445,3.58822011,182.38,182.37,31.02502425]
[1755488830643,3.58822011,182.4,182.39,0.14229573]
[1755488830830,3.58822011,182.44,182.42,0.14229573]
[1755488831031,3.58822011,182.43,182.42,0.14229573]
[1755488831463,3.58822011,182.43,182.41,0.14229573]
[1755488831750,3.96893274,182.43,182.41,0.14229573]
[1755488832049,3.59780811,182.42,182.41,0.14229573]
[1755488832254,3.59780811,182.45,182.44,0.14229573]
[1755488832622,3.59780811,182.45,182.44,15.91880868]
[1755488832918,3.65780811,182.46,182.45,15.2485113]
[1755488833228,0.06,182.46,182.45,31.02502425]
[1755488833435,0.06,182.46,182.45,0.14229573]
[1755488833641,3.65780811,182.46,182.45,0.14229573]
[1755488835664,7.62620008,182.46,182.45,0.14229573]
[1755488836447,7.62620008,182.46,182.44,0.14229573]
[1755488836750,4.25780811,182.45,182.41,0.14229573]
[1755488837051,3.59780811,182.44,182.42,0.14229573]
[1755488837241,3.59780811,182.43,182.42,0.14229573]
[1755488837758,4.25780811,182.43,182.41,0.14229573]
[1755488838061,4.25780811,182.42,182.39,0.14229573]
[1755488838228,3.59780811,182.41,182.39,0.14229573]
[1755488838432,3.59780811,182.4,182.39,0.14229573]
[1755488838663,6.99903618,182.4,182.37,0.14229573]
[1755488838847,4.25780811,182.39,182.33,0.14229573]
[1755488839033,3.59780811,182.38,182.34,0.14229573]
[1755488839235,3.59780811,182.37,182.36,0.14229573]
[1755488839658,3.59780811,182.37,182.3,0.03]
[1755488839659,26.0,182.35,182.3,0.03]
[1755488839958,26.0,182.31,182.3,0.03]
[1755488840143,29.59780811,182.31,182.3,0.03]
[1755488840345,30.25780811,182.31,182.3,0.03]
[1755488840548,33.00038942,182.31,182.3,0.03]
[1755488840753,32.34038942,182.31,182.3,0.03]
[1755488840955,6.34038942,182.31,182.3,0.03]
[1755488841159,6.34021284,182.33,182.3,0.03]
[1755488841455,3.59780811,182.33,182.3,0.03]
[1755488842559,4.25780811,182.33,182.3,0.03]
[1755488842930,0.66,182.32,182.3,0.03]
[1755488843532,0.66,182.31,182.3,0.03]
[1755488843759,68.4,182.31,182.3,0.03]
[1755488844053,71.99780811,182.31,182.3,0.03]
[1755488844861,74.74038942,182.31,182.3,0.03]
[1755488845241,71.99780811,182.31,182.3,0.03]
[1755488846240,45.99780811,182.31,182.3,0.03]
[1755488846749,0.66,182.34,182.3,0.03]
[1755488846947,42.4,182.34,182.3,0.03]
[1755488847144,0.66,182.33,182.3,0.03]
[1755488847361,4.25736882,182.33,182.3,0.03]
[1755488847670,0.66,182.32,182.3,0.03]
[1755488848176,41.74,182.34,182.3,0.03]
[1755488848646,41.74,182.34,182.3,15.13621557]
[1755488849577,42.4,182.34,182.3,15.13621557]
[1755488849786,42.4,182.34,182.3,0.03]
[1755488849978,28.19347336,182.36,182.31,15.10621557]
[1755488849979,67.74,182.36,182.31,15.10621557]
[1755488850209,68.4,182.36,182.31,15.10621557]
[1755488850363,3.59771837,182.35,182.3,0.03]
[1755488850567,68.4,182.36,182.31,15.10621557]
[1755488850787,7.34818695,182.42,182.36,15.10621557]
[1755488850983,26.0,182.4,182.36,30.88272852]
[1755488851286,2.85276147,182.42,182.36,15.10621557]
[1755488851493,26.0,182.41,182.36,15.10621557]
[1755488851678,29.59896637,182.4,182.36,15.10621557]
[1755488851879,3.59896637,182.39,182.36,15.10621557]
[1755488852072,5.79214786,182.39,182.35,15.10621557]
[1755488852393,0.66,182.38,182.3,0.03]
[1755488852690,26.0,182.36,182.3,0.03]
[1755488852880,4.25896637,182.35,182.3,0.03]
[1755488853271,0.66,182.34,182.3,0.03]
[1755488853474,4.25896637,182.34,182.3,0.03]
[1755488853678,0.66,182.33,182.3,0.03]
[1755488853895,2.19394471,182.32,182.3,0.03]
[1755488854108,2.85394471,182.32,182.3,0.03]
[1755488854307,0.66,182.31,182.3,0.03]
[1755488854489,26.66,182.31,182.3,0.03]
[1755488854690,71.97629702,182.31,182.3,0.03]
[1755488855480,45.31629702,182.31,182.3,0.03]
[1755488855683,41.72,182.31,182.3,0.03]
[1755488856295,2.19383326,182.33,182.3,0.03]
[1755488856498,3.5956514,182.33,182.3,0.03]
[1755488856694,41.72,182.34,182.3,0.03]
[1755488856922,43.9137364,182.34,182.3,0.03]
[1755488857300,0.66,182.33,182.3,0.03]
[1755488857497,4.25885163,182.33,182.3,0.03]
[1755488857892,0.66,182.32,182.3,0.03]
[1755488858104,28.19406505,182.31,182.3,0.03]
[1755488858301,32.45291668,182.31,182.3,0.03]
[1755488859789,32.45291668,182.31,182.3,1e-08]
[1755488860310,74.17291668,182.31,182.3,1e-08]
[1755488860728,0.66,182.34,182.3,1e-08]
[1755488861027,42.38,182.34,182.3,1e-08]
[1755488861332,2.85383478,182.33,182.3,1e-08]
[1755488861519,6.45364203,182.33,182.3,1e-08]
[1755488861719,0.66,182.32,182.3,1e-08]
[1755488861927,26.0,182.31,182.3,1e-08]
[1755488862102,29.59980725,182.31,182.3,1e-08]
[1755488862303,30.25980725,182.31,182.3,1e-08]
[1755488862630,26.0,182.3,182.28,0.03]
[1755488862924,45.31980725,182.29,182.28,0.03]
[1755488863111,45.97980725,182.29,182.28,0.03]
[1755488863300,48.17411302,182.29,182.28,0.03]
[1755488863720,43.91430577,182.29,182.28,0.03]
[1755488864422,44.57430577,182.29,182.28,0.03]
[1755488865235,41.72,182.29,182.28,0.03]
[1755488865721,0.66,182.32,182.28,0.03]
[1755488866028,41.72,182.31,182.28,0.03]
[1755488866411,5.4837427,182.36,182.28,0.03]
[1755488866412,2.19382107,182.34,182.28,0.21]
[1755488866600,2.19382107,182.34,182.28,15.31621557]
[1755488866601,41.72,182.33,182.28,15.31621557]
[1755488866797,43.91385555,182.33,182.28,15.31621557]
[1755488867017,43.91385555,182.33,182.28,15.13621557]
[1755488867216,44.59385555,182.33,182.28,15.13621557]
[1755488868002,44.59385555,182.33,182.28,0.03]
[1755488868822,2.19406505,182.31,182.28,0.03]
[1755488869326,2.87406505,182.31,182.28,0.03]
[1755488870029,42.4,182.3,182.28,0.03]
[1755488871023,41.72,182.3,182.28,0.03]
[1755488872019,44.5939248,182.33,182.28,0.03]
[1755488872322,44.5939248,182.33,182.28,15.13621557]
[1755488872626,42.4,182.33,182.28,15.13621557]
[1755488872928,44.59385825,182.33,182.28,0.03]
[1755488873602,0.68,182.32,182.28,0.03]
[1755488874222,2.19406505,182.31,182.28,0.03]
[1755488874906,2.1939639,182.32,182.28,30.91272852]
[1755488875111,43.91385177,182.33,182.28,30.91272852]
[1755488875632,43.91385177,182.33,182.3,15.10621557]
[1755488876127,2.87385177,182.33,182.3,15.10621557]
[1755488877338,2.87385177,182.33,182.28,0.03]
[1755488877633,2.87385177,182.33,182.29,15.10621557]
[1755488878136,2.19385177,182.33,182.3,15.10621557]
[1755488878318,2.87385177,182.33,182.3,15.10621557]
[1755488878913,2.87385177,182.33,182.29,15.10621557]
[1755488879522,0.68,182.32,182.28,0.03]
[1755488880036,4.27689611,182.32,182.28,0.03]
[1755488880257,0.68,182.31,182.28,0.03]
[1755488880436,3.59689611,182.31,182.28,0.03]
[1755488880612,2.19409685,182.31,182.28,0.03]
[1755488880935,2.87409685,182.31,182.28,0.03]
[1755488881128,6.47099296,182.31,182.28,0.03]
[1755488881327,2.87409685,182.31,182.28,0.03]
[1755488881530,3.59689611,182.31,182.28,15.80651295]
[1755488881730,3.59689611,182.34,182.3,15.10621557]
[1755488881926,4.27689611,182.33,182.29,15.10621557]
[1755488882121,3.59689611,182.32,182.31,15.10621557]
[1755488882326,5.79050599,182.35,182.31,15.10621557]
[1755488882526,3.59689611,182.34,182.31,15.10621557]
[1755488882733,3.59689611,182.33,182.29,36.51057538]
[1755488882932,0.68,182.36,182.29,36.69057538]
[1755488883123,3.61555848,182.35,182.3,15.77651295]
[1755488883325,3.61555848,182.34,182.3,15.77651295]
[1755488883525,3.61555848,182.33,182.3,15.77651295]
[1755488883722,3.61555848,182.33,182.29,20.91406243]
[1755488883723,0.68,182.36,182.29,20.73406243]
[1755488883929,3.61808642,182.35,182.3,15.77651295]
[1755488884125,3.61808642,182.34,182.3,15.77651295]
[1755488884448,3.61808642,182.33,182.31,5.48516263]
[1755488884630,3.61808642,182.32,182.31,20.5913782]
[1755488884828,3.61808642,182.36,182.32,15.10621557]
[1755488885141,0.06,182.34,182.32,31.06272852]
[1755488885323,0.06,182.34,182.32,15.28621557]
[1755488885841,0.06,182.34,182.32,15.10621557]
[1755488886246,0.06,182.34,182.32,15.28621557]
[1755488886547,0.06,182.34,182.33,20.59077653]
[1755488887553,0.06,182.34,182.33,15.10621557]
[1755488888142,0.06,182.34,182.33,30.88272852]
[1755488888834,0.74,182.34,182.33,15.10621557]
[1755488889035,4.3542302,182.34,182.33,15.10621557]
[1755488889750,3.6742302,182.34,182.33,15.10621557]
[1755488889945,4.3542302,182.34,182.33,15.10621557]
[1755488890633,6.54793426,182.34,182.33,15.10621557]
[1755488891033,6.54793426,182.34,182.28,0.03]
[1755488891247,4.2942302,182.33,182.28,0.03]